[Event "8th RTU Open 2018"]
[Site "Riga"]
[Date "2018.08.09"]
[Round "6"]
[White "Chukavin, Kirill"]
[Black "Gorodetzky, David"]
[Result "1/2-1/2"]
[ECO "C07"]
[WhiteElo "2291"]
[BlackElo "2451"]
[Annotator "ChessBase"]
[PlyCount "115"]
[EventDate "2018.08.06"]
[EventType "swiss"]
[EventCountry "LAT"]
[SourceTitle "playchess.com"]
[Source "ChessBase"]
[SourceQuality "1"]
[TimeControl "5400+30"]

1. e4 {[%emt 0:00:00]} e6 {[%emt 0:00:46]} 2. d4 {[%emt 0:00:00]} d5 {[%emt 0:00:05]} 3. Nd2 {[%emt 0:00:00]} c5 {[%emt 0:02:36]} 4. exd5 {[%emt 0:00:52]} Qxd5 {[%emt 0:00:41]} 5. Ngf3 {[%emt 0:00:33]} cxd4 {[%emt 0:00:41]} 6. Bc4 {[%emt 0:00:09]} Qd7 {[%emt 0:00:06]} 7. O-O {[%emt 0:00:40]} Nc6 {[%emt 0:01:19]} 8. Nb3 {[%emt 0:00:39]} a6 {[%emt 0:06:23]} 9. Nbxd4 {[%emt 0:05:47]} Nxd4 {[%emt 0:00:45]} 10. Nxd4 {[%emt 0:00:17]} Nf6 {[%emt 0:01:14]} 11. Re1 {[%emt 0:07:20]} Bc5 {[%emt 0:02:00]} 12. Nb3 {[%emt 0:08:20]} Bd6 {[%emt 0:01:26]} 13. h3 {[%emt 0:05:12]} Qc7 {[%emt 0:03:15]} 14. Bd3 {[%emt 0:01:55]} Bd7 {[%emt 0:05:20]} 15. c4 {[%emt 0:10:39]} Rd8 {[%emt 0:06:08]} 16. Qe2 {[%emt 0:07:31]} Bh2+ {[%emt 0:14:30]} 17. Kh1 {[%emt 0:02:34]} Bf4 {[%emt 0:00:57]} 18. Bxf4 {[%emt 0:18:32]} Qxf4 {[%emt 0:01:08]} 19. Qe3 {[%emt 0:00:23]} Qxe3 {[%emt 0:03:41]} 20. Rxe3 {[%emt 0:00:17]} Ke7 {[%emt 0:02:28]} 21. Be2 {[%emt 0:03:36]} Rc8 {[%emt 0:07:16]} 22. Nd4 {[%emt 0:02:03]} Rhd8 {[%emt 0:04:42]} 23. Rd1 {[%emt 0:04:34]} g6 {[%emt 0:01:25]} 24. f4 {[%emt 0:01:57]} Be8 {[%emt 0:09:24]} 25. f5 {[%emt 0:04:36]} Rd6 {[%emt 0:04:55]} 26. fxe6 {[%emt 0:04:17]} fxe6 {[%emt 0:00:42]} 27. Red3 {[%emt 0:07:03]} Ne4 {[%emt 0:03:16]} 28. Kg1 {[%emt 0:00:17]} Rxc4 {[%emt 0:02:49]} 29. Bf3 {[%emt 0:00:08]} Ng5 {[%emt 0:08:34]} 30. Nf5+ {[%emt 0:01:40]} gxf5 {[%emt 0:01:55]} 31. Rxd6 {[%emt 0:00:05]} Nxf3+ {[%emt 0:00:07]} 32. gxf3 {[%emt 0:00:01]} Bc6 {[%emt 0:00:00]} 33. R6d4 {[%emt 0:03:54]} Rc2 {[%emt 0:00:38]} 34. R1d2 {[%emt 0:00:34]} Rxd2 {[%emt 0:00:21]} 35. Rxd2 {[%emt 0:00:01]} Bxf3 {[%emt 0:00:01]} 36. Kf2 {[%emt 0:00:44]} Bc6 {[%emt 0:00:30]} 37. Rd4 {[%emt 0:00:26]} Kf6 {[%emt 0:01:32]} 38. Rd8 {[%emt 0:00:50]} e5 {[%emt 0:00:11]} 39. h4 {[%emt 0:00:18]} f4 {[%emt 0:01:18]} 40. Rf8+ {[%emt 0:00:33]} Kg6 {[%emt 0:01:57]} 41. b4 {[%emt 0:00:21]} h6 {[%emt 0:00:43]} 42. a3 {[%emt 0:00:24]} Bd7 {[%emt 0:02:28]} 43. Rb8 {[%emt 0:00:28]} Bc6 {[%emt 0:00:44]} 44. Rf8 {[%emt 0:00:02]} Bd7 {[%emt 0:00:29]} 45. Rb8 {[%emt 0:00:01]} e4 {[%emt 0:00:20]} 46. Rxb7 {[%emt 0:00:05]} e3+ {[%emt 0:00:39]} 47. Ke1 {[%emt 0:00:03]} Bb5 {[%emt 0:00:32]} 48. a4 {[%emt 0:01:28]} Bxa4 {[%emt 0:00:31]} 49. Rb6+ {[%emt 0:00:01]} Kf5 {[%emt 0:00:20]} 50. Rxa6 Bb3 {[%emt 0:00:30]} 51. Rxh6 {[%emt 0:01:27]} f3 {[%emt 0:00:26]} 52. Rh8 {[%emt 0:00:12]} Kg4 {[%emt 0:00:44]} 53. Rf8 {[%emt 0:00:48]} Bd5 {[%emt 0:00:30]} 54. h5 {[%emt 0:00:51]} Kg5 {[%emt 0:00:28]} 55. b5 {[%emt 0:00:38]} f2+ {[%emt 0:00:20]} 56. Ke2 {[%emt 0:00:46]} Bc4+ {[%emt 0:00:06]} 57. Kxe3 {[%emt 0:00:04]} f1=Q {[%emt 0:00:07]} 58. Rxf1 {[%emt 0:00:22]} 1/2-1/2

[Event "8th RTU Open 2018"]
[Site "Riga"]
[Date "2018.08.09"]
[Round "6"]
[White "Modler, Andreas"]
[Black "Zakhartsov, Viacheslav V"]
[Result "0-1"]
[ECO "A10"]
[WhiteElo "2278"]
[BlackElo "2544"]
[Annotator "ChessBase"]
[PlyCount "102"]
[EventDate "2018.08.06"]
[EventType "swiss"]
[EventCountry "LAT"]
[SourceTitle "playchess.com"]
[Source "ChessBase"]
[SourceQuality "1"]
[TimeControl "5400+30"]

1. c4 {[%emt 0:00:00]} g6 {[%emt 0:00:28]} 2. Nc3 {[%emt 0:00:00]} Bg7 {[%emt 0:00:08]} 3. g3 {[%emt 0:00:00]} Nf6 {[%emt 0:00:29]} 4. Bg2 {[%emt 0:00:00]} O-O {[%emt 0:00:13]} 5. e4 {[%emt 0:00:29]} d6 {[%emt 0:00:20]} 6. Nge2 {[%emt 0:00:07]} c5 {[%emt 0:00:07]} 7. O-O {[%emt 0:01:27]} Nc6 {[%emt 0:00:05]} 8. d3 {[%emt 0:00:06]} Bd7 {[%emt 0:10:04]} 9. h3 {[%emt 0:03:38]} Ne8 {[%emt 0:05:33]} 10. Be3 {[%emt 0:04:08]} Nd4 {[%emt 0:02:21]} 11. Rb1 {[%emt 0:02:11]} a5 {[%emt 0:05:28]} 12. f4 {[%emt 0:08:56]} e6 {[%emt 0:22:05]} 13. g4 {[%emt 0:10:20]} Rb8 {[%emt 0:01:18]} 14. a4 {[%emt 0:01:07]} Nc7 {[%emt 0:04:50]} 15. Nb5 {[%emt 0:14:28]} Ncxb5 {[%emt 0:04:52]} 16. axb5 {[%emt 0:00:17]} Nxe2+ {[%emt 0:04:30]} 17. Qxe2 {[%emt 0:00:21]} f5 {[%emt 0:00:35]} 18. exf5 {[%emt 0:10:00]} exf5 {[%emt 0:01:38]} 19. Bd5+ {[%emt 0:00:49]} Kh8 {[%emt 0:00:04]} 20. g5 {[%emt 0:04:52]} Re8 {[%emt 0:00:56]} 21. Kh1 {[%emt 0:05:52]} Be6 {[%emt 0:04:30]} 22. Bg2 {[%emt 0:05:35]} Qd7 {[%emt 0:03:06]} 23. Qf2 {[%emt 0:02:36]} d5 {[%emt 0:01:22]} 24. b3 {[%emt 0:00:54]} b6 {[%emt 0:01:25]} 25. Rbd1 {[%emt 0:00:51]} Rbd8 {[%emt 0:03:17]} 26. Bf3 {[%emt 0:00:26]} Qf7 {[%emt 0:00:19]} 27. Bc1 {[%emt 0:06:08]} Rd6 {[%emt 0:01:09]} 28. Rfe1 {[%emt 0:04:14]} Red8 {[%emt 0:01:09]} 29. Bb2 {[%emt 0:01:21]} Bxb2 {[%emt 0:07:13]} 30. Qxb2+ {[%emt 0:00:08]} Qg7 {[%emt 0:00:01]} 31. Qxg7+ {[%emt 0:01:14]} Kxg7 {[%emt 0:00:01]} 32. Kg2 {[%emt 0:00:41]} Kf7 {[%emt 0:00:20]} 33. Kf2 {[%emt 0:00:57]} dxc4 {[%emt 0:02:57]} 34. dxc4 {[%emt 0:00:22]} a4 {[%emt 0:04:07]} 35. Rxd6 {[%emt 0:01:38]} Rxd6 {[%emt 0:00:00]} 36. bxa4 {[%emt 0:00:18]} Bxc4 {[%emt 0:00:03]} 37. Ra1 {[%emt 0:01:10]} Rd2+ {[%emt 0:00:23]} 38. Ke3 {[%emt 0:00:53]} Rd3+ {[%emt 0:02:26]} 39. Kf2 {[%emt 0:00:15]} Rb3 {[%emt 0:00:14]} 40. h4 {[%emt 0:03:11]} Ke6 {[%emt 0:00:41]} 41. h5 {[%emt 0:02:10]} gxh5 {[%emt 0:03:32]} 42. Bxh5 {[%emt 0:00:09]} Bd5 {[%emt 0:00:10]} 43. Be2 {[%emt 0:03:55]} Rb4 {[%emt 0:01:39]} 44. a5 {[%emt 0:01:09]} bxa5 {[%emt 0:00:47]} 45. Rxa5 {[%emt 0:00:08]} Rxf4+ {[%emt 0:00:11]} 46. Kg3 {[%emt 0:00:48]} Rb4 {[%emt 0:00:34]} 47. Ra7 {[%emt 0:00:37]} f4+ {[%emt 0:00:16]} 48. Kf2 {[%emt 0:01:02]} Rb2 {[%emt 0:01:03]} 49. Kf1 {[%emt 0:00:42]} f3 {[%emt 0:01:26]} 50. Bd3 {[%emt 0:00:36]} Rd2 {[%emt 0:01:18]} 51. Rxh7 {[%emt 0:01:38]} Rxd3 {[%emt 0:00:06]} 0-1

[Event "8th RTU Open 2018"]
[Site "Riga"]
[Date "2018.08.09"]
[Round "6"]
[White "Jacobs, Florian"]
[Black "Seeman, Tarvo"]
[Result "1-0"]
[ECO "E97"]
[WhiteElo "2255"]
[BlackElo "2405"]
[Annotator "NA"]
[PlyCount "85"]
[EventDate "2018.08.06"]
[EventType "swiss"]
[EventCountry "LAT"]
[SourceTitle "playchess.com"]
[Source "ChessBase"]
[SourceQuality "1"]
[TimeControl "5400+30"]

1. d4 {[%emt 0:00:00]} Nf6 {[%emt 0:00:00]} 2. c4 {[%emt 0:00:00]} g6 {[%emt 0:00:00]} 3. Nc3 {[%emt 0:00:00]} Bg7 {[%emt 0:00:00]} 4. e4 {[%emt 0:00:00]} d6 {[%emt 0:00:00]} 5. Nf3 {[%emt 0:00:00]} O-O {[%emt 0:00:00]} 6. Be2 {[%emt 0:00:00]} e5 {[%emt 0:01:28]} 7. O-O {[%emt 0:00:08]} Nc6 {[%emt 0:00:27]} 8. d5 {[%emt 0:00:08]} Ne7 {[%emt 0:00:05]} 9. Bg5 {[%emt 0:00:18]} Nd7 {[%emt 0:05:47]} 10. Nd2 {[%emt 0:01:06]} f6 {[%emt 0:06:51]} 11. Be3 {[%emt 0:00:12]} f5 {[%emt 0:00:08]} 12. f3 {[%emt 0:00:05]} f4 {[%emt 0:03:11]} 13. Bf2 {[%emt 0:00:05]} g5 {[%emt 0:09:51]} 14. b4 {[%emt 0:00:06]} Nf6 {[%emt 0:02:13]} 15. c5 {[%emt 0:00:16]} h5 {[%emt 0:04:03]} 16. h3 {[%emt 0:00:16]} Bd7 {[%emt 0:04:19]} 17. Nc4 {[%emt 0:03:55]} Nc8 {[%emt 0:00:32]} 18. a4 {[%emt 0:00:40]} Rf7 {[%emt 0:03:25]} 19. c6 {[%emt 0:15:13]} bxc6 {[%emt 0:00:18]} 20. dxc6 {[%emt 0:00:05]} Be6 {[%emt 0:00:18]} 21. Nxe5 {[%emt 0:00:31]} Rf8 {[%emt 0:02:03]} 22. Bc4 {[%emt 0:06:01]} Bxc4 {[%emt 0:04:13]} 23. Nxc4 {[%emt 0:00:08]} Ne7 {[%emt 0:01:05]} 24. Qb3 {[%emt 0:08:59]} Kh8 {[%emt 0:02:49]} 25. Rad1 {[%emt 0:21:29]} Nxc6 {[%emt 0:03:18]} 26. e5 {[%emt 0:00:40]} Ne8 {[%emt 0:01:36]} 27. exd6 {[%emt 0:02:20]} cxd6 {[%emt 0:00:53]} 28. b5 {[%emt 0:02:31]} Ne7 {[%emt 0:02:02]} 29. Nd5 {[%emt 0:05:17]} Nf5 {[%emt 0:02:58]} 30. Rfe1 {[%emt 0:00:48]} Nf6 {[%emt 0:03:29]} 31. Qd3 {[%emt 0:02:06]} Nd7 {[%emt 0:01:55]} 32. Ne7 {[%emt 0:11:24]} Nxe7 {[%emt 0:02:10]} 33. Qxd6 {[%emt 0:00:06]} Nf5 {[%emt 0:01:48]} 34. Qxd7 {[%emt 0:00:14]} Qf6 {[%emt 0:00:18]} 35. Qe6 {[%emt 0:03:09]} Qc3 {[%emt 0:05:10]} 36. Ne5 {[%emt 0:02:08]} Rf6 {[%emt 0:01:55]} 37. Nf7+ {[%emt 0:02:47]} Kh7 {[%emt 0:01:34]} 38. Qd5 {[%emt 0:00:05]} Qc8 {[%emt 0:03:00]} 39. Nxg5+ {[%emt 0:00:33]} Kg6 {[%emt 0:00:08]} 40. Ne4 {[%emt 0:01:15]} Re6 {[%emt 0:02:13]} 41. Nc5 {[%emt 0:02:35]} Rd6 {[%emt 0:00:22]} 42. Re6+ {[%emt 0:00:48]} Rxe6 {[%emt 0:00:08]} 43. Nxe6 {[%emt 0:00:03]} 1-0

[Event "8th RTU Open 2018"]
[Site "Riga"]
[Date "2018.08.09"]
[Round "6"]
[White "Bluebaum, Karl Ernst"]
[Black "Merry, Alan B"]
[Result "1/2-1/2"]
[ECO "E91"]
[WhiteElo "2253"]
[BlackElo "2445"]
[Annotator "NA"]
[PlyCount "114"]
[EventDate "2018.08.06"]
[EventType "swiss"]
[EventCountry "LAT"]
[SourceTitle "playchess.com"]
[Source "ChessBase"]
[SourceQuality "1"]
[TimeControl "5400+30"]

1. d4 {[%emt 0:00:00]} Nf6 {[%emt 0:00:00]} 2. c4 {[%emt 0:00:00]} g6 {[%emt 0:00:00]} 3. Nc3 {[%emt 0:00:14]} Bg7 {[%emt 0:00:00]} 4. e4 {[%emt 0:00:14]} d6 {[%emt 0:00:00]} 5. Nf3 {[%emt 0:00:23]} O-O {[%emt 0:00:00]} 6. Be2 {[%emt 0:00:11]} Nbd7 {[%emt 0:00:04]} 7. O-O {[%emt 0:00:20]} e5 {[%emt 0:00:02]} 8. Be3 {[%emt 0:00:13]} Re8 {[%emt 0:00:21]} 9. d5 {[%emt 0:02:35]} Nh5 {[%emt 0:00:08]} 10. g3 {[%emt 0:00:43]} Bf8 {[%emt 0:00:14]} 11. Ne1 {[%emt 0:01:38]} Ng7 {[%emt 0:00:03]} 12. Nd3 {[%emt 0:00:31]} f5 {[%emt 0:00:08]} 13. f3 {[%emt 0:00:14]} c5 {[%emt 0:00:31]} 14. Qd2 {[%emt 0:16:19]} Be7 {[%emt 0:00:20]} 15. Rae1 {[%emt 0:00:30]} Nf6 {[%emt 0:01:11]} 16. Bd1 {[%emt 0:02:49]} a6 {[%emt 0:04:57]} 17. a4 {[%emt 0:10:03]} Bd7 {[%emt 0:01:49]} 18. Bh6 {[%emt 0:02:20]} fxe4 {[%emt 0:08:07]} 19. fxe4 {[%emt 0:00:56]} Ng4 {[%emt 0:00:42]} 20. Bxg4 {[%emt 0:00:52]} Bxg4 {[%emt 0:00:06]} 21. Nf2 {[%emt 0:00:25]} Bd7 {[%emt 0:00:23]} 22. b3 {[%emt 0:06:46]} Qa5 {[%emt 0:05:16]} 23. Qd3 {[%emt 0:03:04]} Rf8 {[%emt 0:02:06]} 24. Kg2 {[%emt 0:06:40]} Rf7 {[%emt 0:01:58]} 25. Nfd1 {[%emt 0:08:29]} Raf8 {[%emt 0:00:45]} 26. Rxf7 {[%emt 0:00:11]} Rxf7 {[%emt 0:00:05]} 27. Rf1 {[%emt 0:00:13]} Rxf1 {[%emt 0:02:17]} 28. Kxf1 {[%emt 0:00:01]} Ne8 {[%emt 0:00:57]} 29. Bd2 {[%emt 0:00:30]} Nf6 {[%emt 0:01:54]} 30. Nf2 {[%emt 0:02:18]} Ng4 {[%emt 0:01:55]} 31. Ncd1 {[%emt 0:01:19]} Qd8 {[%emt 0:01:13]} 32. Nxg4 {[%emt 0:00:08]} Bxg4 {[%emt 0:00:04]} 33. Nf2 {[%emt 0:00:07]} Bd7 {[%emt 0:00:18]} 34. a5 {[%emt 0:03:45]} b5 {[%emt 0:06:16]} 35. axb6 {[%emt 0:00:09]} Qxb6 {[%emt 0:00:03]} 36. Qf3 {[%emt 0:02:49]} Kg7 {[%emt 0:10:06]} 37. h4 {[%emt 0:04:39]} Qd8 {[%emt 0:19:10]} 38. Kg2 {[%emt 0:08:27]} a5 {[%emt 0:02:14]} 39. Qc3 {[%emt 0:07:13]} a4 {[%emt 0:01:07]} 40. bxa4 {[%emt 0:00:01]} Bxa4 {[%emt 0:00:07]} 41. Qa3 {[%emt 0:00:19]} Qa8 {[%emt 0:06:30]} 42. Bg5 {[%emt 0:02:31]} Bf8 {[%emt 0:04:11]} 43. Ng4 {[%emt 0:05:21]} h5 {[%emt 0:05:07]} 44. Bh6+ {[%emt 0:00:53]} Kg8 {[%emt 0:07:18]} 45. Bxf8 {[%emt 0:01:34]} Kxf8 {[%emt 0:06:27]} 46. Qf3+ {[%emt 0:00:22]} Kg8 {[%emt 0:00:07]} 47. Qf6 {[%emt 0:00:48]} Be8 {[%emt 0:00:48]} 48. Qe6+ {[%emt 0:00:40]} Bf7 {[%emt 0:02:27]} 49. Nh6+ {[%emt 0:00:03]} Kg7 {[%emt 0:00:06]} 50. Nxf7 {[%emt 0:02:06]} Qa2+ {[%emt 0:00:05]} 51. Kg1 {[%emt 0:00:08]} Qb1+ {[%emt 0:00:13]} 52. Kf2 {[%emt 0:00:06]} Qc2+ {[%emt 0:00:37]} 53. Kg1 {[%emt 0:00:03]} Qd1+ {[%emt 0:00:12]} 54. Kf2 {[%emt 0:00:02]} Qd4+ {[%emt 0:01:15]} 55. Kf3 {[%emt 0:00:07]} Qd3+ {[%emt 0:00:37]} 56. Kf2 {[%emt 0:00:01]} Qc2+ {[%emt 0:00:41]} 57. Ke3 {[%emt 0:00:11]} Qc3+ 1/2-1/2

[Event "8th RTU Open 2018"]
[Site "Riga"]
[Date "2018.08.09"]
[Round "6"]
[White "Juknis, Paulius"]
[Black "Korchmar, Vasiliy"]
[Result "0-1"]
[ECO "D02"]
[WhiteElo "2231"]
[BlackElo "2415"]
[Annotator "NA"]
[PlyCount "128"]
[EventDate "2018.08.06"]
[EventType "swiss"]
[EventCountry "LAT"]
[SourceTitle "playchess.com"]
[Source "ChessBase"]
[SourceQuality "1"]
[TimeControl "5400+30"]

1. d4 {[%emt 0:00:00]} Nf6 {[%emt 0:00:00]} 2. Nf3 {[%emt 0:00:23]} d5 {[%emt 0:00:17]} 3. Bf4 {[%emt 0:01:21]} c5 {[%emt 0:00:21]} 4. e3 {[%emt 0:00:14]} Nc6 {[%emt 0:00:11]} 5. Nbd2 {[%emt 0:00:12]} cxd4 {[%emt 0:01:34]} 6. exd4 {[%emt 0:00:14]} Qb6 {[%emt 0:00:09]} 7. Nb3 {[%emt 0:00:29]} Bg4 {[%emt 0:00:07]} 8. Be2 {[%emt 0:03:36]} e6 {[%emt 0:00:08]} 9. h3 {[%emt 0:02:12]} Bh5 {[%emt 0:00:23]} 10. O-O {[%emt 0:06:42]} Be7 {[%emt 0:02:28]} 11. a4 {[%emt 0:00:51]} a6 {[%emt 0:01:31]} 12. a5 {[%emt 0:08:36]} Qd8 {[%emt 0:00:17]} 13. Ne5 {[%emt 0:02:35]} Bxe2 {[%emt 0:03:06]} 14. Qxe2 {[%emt 0:00:07]} Rc8 {[%emt 0:00:37]} 15. Nxc6 {[%emt 0:05:09]} Rxc6 {[%emt 0:00:06]} 16. Be5 {[%emt 0:00:28]} O-O {[%emt 0:01:36]} 17. Bxf6 {[%emt 0:00:54]} Bxf6 {[%emt 0:03:11]} 18. c3 {[%emt 0:00:22]} Be7 {[%emt 0:11:22]} 19. Nc1 {[%emt 0:01:43]} Bd6 {[%emt 0:03:32]} 20. Nd3 {[%emt 0:00:33]} Re8 {[%emt 0:12:01]} 21. Qd2 {[%emt 0:10:08]} Qh4 {[%emt 0:07:29]} 22. f4 {[%emt 0:05:55]} Rc7 {[%emt 0:03:04]} 23. Qf2 {[%emt 0:04:45]} Qh6 {[%emt 0:18:07]} 24. Rae1 {[%emt 0:08:20]} g6 {[%emt 0:03:21]} 25. Ne5 {[%emt 0:01:18]} Qg7 {[%emt 0:06:37]} 26. Re3 {[%emt 0:04:58]} Rcc8 {[%emt 0:00:25]} 27. Kh1 {[%emt 0:05:08]} Bc7 {[%emt 0:02:39]} 28. b4 {[%emt 0:01:02]} Bd6 {[%emt 0:04:15]} 29. Qe1 {[%emt 0:02:11]} Rc7 {[%emt 0:01:50]} 30. Nd3 {[%emt 0:00:59]} Rce7 {[%emt 0:04:12]} 31. Qf2 {[%emt 0:01:16]} Qf6 {[%emt 0:00:17]} 32. Ne5 {[%emt 0:00:58]} Rc7 {[%emt 0:01:31]} 33. Qe1 {[%emt 0:07:20]} Rec8 {[%emt 0:03:15]} 34. Ng4 {[%emt 0:01:11]} Qg7 {[%emt 0:00:59]} 35. Rxe6 {[%emt 0:05:25]} fxe6 {[%emt 0:00:04]} 36. Qxe6+ {[%emt 0:00:06]} Kh8 {[%emt 0:00:08]} 37. Qxd6 {[%emt 0:00:07]} Rxc3 {[%emt 0:00:41]} 38. Qxd5 {[%emt 0:00:23]} Rc1 {[%emt 0:01:55]} 39. Rxc1 {[%emt 0:00:12]} Rxc1+ {[%emt 0:00:01]} 40. Kh2 {[%emt 0:00:08]} Qc7 {[%emt 0:00:58]} 41. Ne5 {[%emt 0:00:38]} Rd1 {[%emt 0:01:15]} 42. Qe6 {[%emt 0:01:57]} Kg7 {[%emt 0:03:41]} 43. d5 {[%emt 0:00:48]} Rd4 {[%emt 0:00:02]} 44. f5 {[%emt 0:02:52]} gxf5 {[%emt 0:00:40]} 45. Qxf5 {[%emt 0:00:12]} Qd6 {[%emt 0:01:34]} 46. Qg5+ {[%emt 0:04:52]} Kf8 {[%emt 0:00:02]} 47. Kg1 {[%emt 0:02:22]} Rd1+ {[%emt 0:00:04]} 48. Kf2 {[%emt 0:00:13]} Rxd5 {[%emt 0:01:10]} 49. Qf5+ {[%emt 0:00:12]} Ke8 {[%emt 0:00:39]} 50. Qh5+ {[%emt 0:01:35]} Qg6 {[%emt 0:00:01]} 51. Qxg6+ {[%emt 0:00:26]} hxg6 {[%emt 0:00:01]} 52. Nxg6 {[%emt 0:00:01]} Rb5 {[%emt 0:01:23]} 53. h4 {[%emt 0:00:30]} Kf7 {[%emt 0:00:21]} 54. Nf4 {[%emt 0:00:20]} Rxb4 {[%emt 0:00:04]} 55. Kf3 {[%emt 0:00:20]} Rb5 {[%emt 0:00:09]} 56. g4 {[%emt 0:00:12]} Rxa5 {[%emt 0:00:04]} 57. g5 {[%emt 0:00:15]} Rc5 {[%emt 0:01:40]} 58. Kg4 {[%emt 0:00:24]} a5 {[%emt 0:00:22]} 59. g6+ {[%emt 0:00:22]} Kg8 {[%emt 0:00:53]} 60. h5 {[%emt 0:00:52]} a4 {[%emt 0:00:00]} 61. h6 {[%emt 0:00:45]} a3 {[%emt 0:00:37]} 62. Ne6 {[%emt 0:01:17]} Re5 {[%emt 0:00:44]} 63. Nd8 {[%emt 0:00:43]} a2 {[%emt 0:00:46]} 64. Nf7 {[%emt 0:00:26]} Re8 {[%emt 0:00:26]} 0-1

[Event "8th RTU Open 2018"]
[Site "Riga"]
[Date "2018.08.09"]
[Round "6"]
[White "Priyanka, Nutakki"]
[Black "Lapshun, Yury"]
[Result "1/2-1/2"]
[ECO "B02"]
[WhiteElo "2212"]
[BlackElo "2403"]
[Annotator "NA"]
[PlyCount "199"]
[EventDate "2018.08.06"]
[EventType "swiss"]
[EventCountry "LAT"]
[SourceTitle "playchess.com"]
[Source "ChessBase"]
[SourceQuality "1"]
[TimeControl "5400+30"]

1. e4 {[%emt 0:00:41]} Nf6 {[%emt 0:15:51]} 2. e5 {[%emt 0:00:14]} Nd5 {[%emt 0:00:05]} 3. c4 {[%emt 0:00:13]} Nb6 {[%emt 0:00:09]} 4. c5 {[%emt 0:00:08]} Nd5 {[%emt 0:00:03]} 5. Nc3 {[%emt 0:00:06]} c6 {[%emt 0:00:50]} 6. Nxd5 {[%emt 0:01:08]} cxd5 {[%emt 0:00:05]} 7. d4 {[%emt 0:00:19]} b6 {[%emt 0:00:14]} 8. cxb6 {[%emt 0:04:43]} Qxb6 {[%emt 0:00:43]} 9. Nf3 {[%emt 0:01:19]} e6 {[%emt 0:03:00]} 10. Be2 {[%emt 0:02:11]} Nc6 {[%emt 0:00:15]} 11. O-O {[%emt 0:00:51]} Be7 {[%emt 0:00:27]} 12. Rb1 {[%emt 0:02:55]} a5 {[%emt 0:01:13]} 13. Be3 {[%emt 0:02:22]} O-O {[%emt 0:00:25]} 14. h4 {[%emt 0:05:21]} Ba6 {[%emt 0:01:24]} 15. Bxa6 {[%emt 0:04:49]} Qxa6 {[%emt 0:00:41]} 16. h5 {[%emt 0:00:07]} h6 {[%emt 0:01:30]} 17. Nh2 {[%emt 0:03:33]} f5 {[%emt 0:08:01]} 18. exf6 {[%emt 0:02:39]} Bxf6 {[%emt 0:00:05]} 19. Ng4 {[%emt 0:04:41]} Ne7 {[%emt 0:00:19]} 20. Nxf6+ {[%emt 0:20:15]} Rxf6 {[%emt 0:00:37]} 21. g4 {[%emt 0:00:05]} d6 {[%emt 0:08:18]} 22. Rc1 {[%emt 0:08:03]} Qb7 {[%emt 0:01:23]} 23. Qc2 {[%emt 0:04:29]} Rc8 {[%emt 0:00:55]} 24. Qb3 {[%emt 0:07:09]} Qxb3 {[%emt 0:13:51]} 25. Rxc8+ {[%emt 0:00:08]} Nxc8 {[%emt 0:00:03]} 26. axb3 {[%emt 0:00:05]} Na7 {[%emt 0:01:35]} 27. Ra1 {[%emt 0:00:33]} Nc6 {[%emt 0:01:03]} 28. Rc1 {[%emt 0:00:05]} Nb4 {[%emt 0:00:44]} 29. Rc7 {[%emt 0:06:15]} Rf7 {[%emt 0:00:21]} 30. Rc8+ {[%emt 0:00:01]} Rf8 {[%emt 0:00:39]} 31. Rc7 {[%emt 0:00:02]} e5 {[%emt 0:01:22]} 32. Kg2 {[%emt 0:04:41]} Rf7 {[%emt 0:10:30]} 33. Rc8+ {[%emt 0:00:06]} Kh7 {[%emt 0:00:04]} 34. Kg3 {[%emt 0:04:17]} Nd3 {[%emt 0:05:25]} 35. Ra8 {[%emt 0:06:45]} exd4 {[%emt 0:01:03]} 36. Bxd4 {[%emt 0:00:06]} Nc1 {[%emt 0:00:49]} 37. Be3 {[%emt 0:02:04]} Nxb3 {[%emt 0:04:41]} 38. Rb8 {[%emt 0:00:01]} a4 {[%emt 0:00:13]} 39. Rb4 {[%emt 0:00:05]} Re7 {[%emt 0:00:32]} 40. Kf3 {[%emt 0:01:52]} Rf7+ {[%emt 0:02:12]} 41. Kg3 {[%emt 0:00:07]} Nc5 {[%emt 0:08:14]} 42. Rd4 {[%emt 0:00:07]} Ne4+ {[%emt 0:00:41]} 43. Kg2 {[%emt 0:00:01]} Nf6 {[%emt 0:03:15]} 44. Rxa4 {[%emt 0:00:19]} Rb7 {[%emt 0:00:06]} 45. Kf3 {[%emt 0:05:32]} Rxb2 {[%emt 0:01:40]} 46. Ra6 {[%emt 0:00:01]} Rb4 {[%emt 0:01:38]} 47. Rxd6 {[%emt 0:00:39]} Nxg4 {[%emt 0:00:05]} 48. Rxd5 {[%emt 0:00:47]} Nf6 {[%emt 0:00:02]} 49. Ra5 {[%emt 0:00:53]} Rh4 {[%emt 0:00:06]} 50. Kg3 {[%emt 0:00:29]} Rxh5 {[%emt 0:00:05]} 51. Rxh5 {[%emt 0:00:11]} Nxh5+ {[%emt 0:00:03]} 52. Kg2 {[%emt 0:00:35]} Kg6 {[%emt 0:00:06]} 53. Kf3 {[%emt 0:00:47]} Kf5 {[%emt 0:00:09]} 54. Bd2 {[%emt 0:00:23]} Nf6 {[%emt 0:00:22]} 55. Be3 {[%emt 0:00:33]} Ng4 {[%emt 0:00:47]} 56. Ba7 {[%emt 0:00:28]} Ne5+ {[%emt 0:00:09]} 57. Kg3 {[%emt 0:00:04]} Ke4 {[%emt 0:00:19]} 58. Be3 {[%emt 0:00:26]} Kf5 {[%emt 0:01:06]} 59. Bd4 {[%emt 0:00:48]} g6 {[%emt 0:01:23]} 60. Be3 {[%emt 0:00:45]} h5 {[%emt 0:00:29]} 61. Kh4 Nf3+ {[%emt 0:01:18]} 62. Kg3 {[%emt 0:00:38]} Ke4 {[%emt 0:00:13]} 63. Bb6 {[%emt 0:00:51]} g5 {[%emt 0:02:21]} 64. Bd8 {[%emt 0:00:14]} g4 {[%emt 0:01:13]} 65. Bb6 {[%emt 0:00:48]} Kf5 {[%emt 0:00:44]} 66. Bd8 {[%emt 0:00:01]} Ke5 {[%emt 0:00:23]} 67. Bb6 {[%emt 0:00:27]} Kf5 {[%emt 0:00:39]} 68. Bd8 {[%emt 0:00:01]} Nd2 {[%emt 0:00:11]} 69. Kh4 Kg6 {[%emt 0:00:32]} 70. Kg3 {[%emt 0:02:02]} Ne4+ {[%emt 0:00:23]} 71. Kg2 {[%emt 0:00:01]} Nd2 {[%emt 0:00:19]} 72. Kg3 {[%emt 0:00:11]} Nf3 {[%emt 0:00:03]} 73. Kf4 {[%emt 0:01:11]} Nd4 {[%emt 0:00:02]} 74. Kg3 {[%emt 0:00:06]} Kf5 {[%emt 0:01:07]} 75. Kh4 {[%emt 0:00:50]} Ne6 {[%emt 0:00:11]} 76. Bb6 {[%emt 0:00:09]} Kg6 {[%emt 0:00:33]} 77. Kg3 {[%emt 0:00:26]} Ng5 {[%emt 0:00:07]} 78. Bd8 {[%emt 0:00:20]} Nf3 {[%emt 0:01:32]} 79. Bb6 {[%emt 0:00:23]} Kf5 {[%emt 0:00:10]} 80. Bd8 {[%emt 0:00:23]} Ke4 {[%emt 0:01:08]} 81. Bb6 {[%emt 0:00:56]} Kd3 {[%emt 0:00:00]} 82. Bc5 {[%emt 0:01:08]} Ke2 {[%emt 0:01:48]} 83. Bb6 {[%emt 0:00:09]} Kf1 {[%emt 0:00:04]} 84. Bd8 {[%emt 0:00:43]} Kg1 {[%emt 0:01:06]} 85. Bb6 {[%emt 0:00:25]} Kf1 {[%emt 0:00:05]} 86. Bd8 {[%emt 0:00:19]} Ke2 {[%emt 0:00:02]} 87. Bc7 {[%emt 0:00:48]} Kd3 {[%emt 0:00:01]} 88. Bb6 {[%emt 0:00:08]} Ke4 {[%emt 0:00:01]} 89. Bc7 {[%emt 0:00:15]} Kf5 {[%emt 0:00:04]} 90. Bd8 {[%emt 0:00:09]} Nd4 {[%emt 0:00:06]} 91. Kh4 Kg6 {[%emt 0:00:46]} 92. Kg3 {[%emt 0:00:47]} Kh6 {[%emt 0:00:29]} 93. Kg2 {[%emt 0:01:33]} Nf5 {[%emt 0:00:48]} 94. f3 {[%emt 0:00:32]} g3 {[%emt 0:00:02]} 95. Kh3 {[%emt 0:00:21]} Kg6 {[%emt 0:00:21]} 96. Bc7 {[%emt 0:00:10]} h4 {[%emt 0:00:17]} 97. Bd8 {[%emt 0:00:04]} Kh5 98. Bxh4 Nxh4 {[%emt 0:00:32]} 99. Kxg3 {[%emt 0:00:09]} Nxf3 {[%emt 0:00:01]} 100. Kxf3 {[%emt 0:00:08]} 1/2-1/2